bitfinex/quotes_BTCUSD_20241223
["timestamp","ask_amount","ask_price","bid_price","bid_amount"]
[1734932508112,0.39383413,95640.0,95639.0,0.5504856]
[1734932508410,0.39383413,95640.0,95639.0,0.1056456]
[1734932508565,0.39383413,95640.0,95639.0,0.1046456]
[1734932508772,0.39783413,95640.0,95639.0,0.1046456]
[1734932509063,0.39383413,95640.0,95639.0,0.1046456]
[1734932509221,0.26316493,95640.0,95639.0,0.1046456]
[1734932509452,0.24416493,95640.0,95639.0,0.1046456]
[1734932510012,0.24216493,95640.0,95639.0,0.1046456]
[1734932510401,0.19446493,95640.0,95639.0,0.1046456]
[1734932510544,0.19646493,95640.0,95639.0,0.1046456]
[1734932510870,0.21546493,95640.0,95639.0,0.1046456]
[1734932511081,0.21746493,95640.0,95639.0,0.1046456]
[1734932511290,0.24613413,95640.0,95639.0,0.1046456]
[1734932511654,0.24913413,95640.0,95639.0,0.1046456]
[1734932511819,0.24613413,95640.0,95639.0,0.1046456]
[1734932512018,0.24613413,95640.0,95639.0,0.0316456]
[1734932512262,0.24913413,95640.0,95639.0,0.0316456]
[1734932512473,0.24613413,95640.0,95639.0,0.0316456]
[1734932512726,0.24413413,95640.0,95639.0,0.0316456]
[1734932513046,0.24613413,95640.0,95639.0,0.0316456]
[1734932513419,0.24413413,95640.0,95639.0,0.0316456]
[1734932513763,0.24913413,95640.0,95639.0,0.0316456]
[1734932514145,0.24613413,95640.0,95639.0,0.0316456]
[1734932514343,0.24913413,95640.0,95639.0,0.0316456]
[1734932514990,0.39733413,95640.0,95639.0,0.0316456]
[1734932515618,0.39433413,95640.0,95639.0,0.0316456]
[1734932515815,0.39233413,95640.0,95639.0,0.0316456]
[1734932516066,0.39433413,95640.0,95639.0,0.0316456]
[1734932516992,0.0306692,95632.0,95605.0,0.0395024]
[1734932517301,0.209187,95608.0,95605.0,0.03955599]
[1734932518011,0.209187,95608.0,95605.0,5.359e-05]
[1734932518805,0.209187,95608.0,95605.0,0.00405359]
[1734932519006,0.209187,95608.0,95605.0,5.359e-05]
[1734932519383,0.2398602,95606.0,95605.0,5.359e-05]
[1734932519592,0.3641686,95606.0,95605.0,0.00013919]
[1734932520001,0.5473686,95606.0,95605.0,1.9e-07]
[1734932520837,0.56875793,95606.0,95605.0,1.9e-07]
[1734932521264,0.209246,95581.0,95580.0,0.09393391]
[1734932521469,0.209246,95581.0,95568.0,0.28459407]
[1734932521470,0.023,95580.0,95568.0,0.0499]
[1734932521705,0.1013084,95579.0,95572.0,0.00053424]
[1734932522240,0.209255,95577.0,95572.0,0.00053424]
[1734932522973,0.209255,95577.0,95572.0,0.00653424]
[1734932523334,0.210255,95577.0,95572.0,0.01553424]
[1734932523543,0.001,95577.0,95572.0,0.01553424]
[1734932524148,0.001,95577.0,95573.0,0.21031028]
[1734932524541,0.001,95577.0,95575.0,0.209259]
[1734932524712,0.1167967,95590.0,95575.0,0.209259]
[1734932525549,0.001,95577.0,95576.0,0.15104618]
[1734932525762,0.001,95577.0,95576.0,0.26957698]
[1734932525972,0.001,95577.0,95576.0,0.2685308]
[1734932527420,0.001,95577.0,95576.0,0.4500392]
[1734932528027,0.004,95577.0,95576.0,0.4500392]
[1734932528254,0.001,95577.0,95576.0,0.4500392]
[1734932528572,0.001,95577.0,95576.0,0.4510392]
[1734932528974,0.209185,95609.0,95594.0,0.209216]
[1734932529637,0.209185,95609.0,95595.0,0.0832]
[1734932529843,0.1,95635.0,95595.0,0.0832]
[1734932529844,0.209165,95618.0,95598.0,0.2193308]
[1734932530056,0.1013084,95617.0,95598.0,0.2193308]
[1734932530313,0.209172,95615.0,95598.0,0.2193308]
[1734932530673,0.001,95609.0,95598.0,0.2193308]
[1734932531240,0.001,95609.0,95598.0,0.0693308]
[1734932531461,0.0021712,95609.0,95598.0,0.07037673]
[1734932531637,0.209187,95608.0,95598.0,0.07037673]
[1734932532439,0.209187,95608.0,95598.0,0.08351663]
[1734932532688,0.0001712,95609.0,95598.0,0.08351663]
[1734932534272,0.2093582,95609.0,95598.0,0.08451663]
[1734932534529,0.2093582,95609.0,95598.0,0.08351663]
[1734932534786,0.0001712,95609.0,95605.0,0.209193]
[1734932535000,0.0001712,95609.0,95602.0,0.0693308]
[1734932535212,0.0001712,95609.0,95603.0,0.21024383]
[1734932535640,0.0001712,95609.0,95600.0,0.15]
[1734932535855,0.209203,95601.0,95585.0,0.15]
[1734932536067,0.418406,95601.0,95588.0,0.0693308]
[1734932536473,0.209203,95601.0,95587.0,0.15]
[1734932536685,0.209203,95601.0,95588.0,0.0693308]
[1734932536885,0.209203,95601.0,95587.0,0.4285638]
[1734932537089,0.209203,95601.0,95588.0,0.0693308]
[1734932537538,0.5445797,95606.0,95595.0,0.0693308]
[1734932537739,0.209196,95604.0,95603.0,0.004]
[1734932537936,0.209196,95604.0,95594.0,0.0693308]
[1734932538527,0.418394,95604.0,95587.0,0.359233]
[1734932538706,0.418394,95604.0,95588.0,0.0693308]
[1734932538907,0.418394,95604.0,95587.0,0.359233]
[1734932538908,0.419394,95604.0,95596.0,0.0693308]
[1734932539108,0.418394,95604.0,95596.0,0.0693308]
[1734932540312,0.419394,95604.0,95596.0,0.0693308]
[1734932540512,0.420394,95604.0,95596.0,0.0693308]
[1734932540825,0.419394,95604.0,95596.0,0.0693308]
[1734932541032,0.420394,95604.0,95596.0,0.0693308]
[1734932541508,0.211196,95604.0,95596.0,0.0693308]
[1734932542254,0.210196,95604.0,95596.0,0.0693308]
[1734932542515,0.209196,95604.0,95596.0,0.0693308]
[1734932546913,0.1013084,95605.0,95596.0,0.0693308]
[1734932547165,0.0001712,95606.0,95596.0,0.0693308]
[1734932547389,0.0001712,95606.0,95596.0,0.2193308]
[1734932548393,0.0001712,95606.0,95597.0,0.21025699]
[1734932548609,0.0001712,95606.0,95602.0,0.209199]
[1734932549429,0.0001712,95606.0,95604.0,0.209196]
[1734932549585,0.0001712,95606.0,95605.0,0.30357662]
[1734932549791,0.0001712,95606.0,95605.0,0.3025308]
[1734932551006,0.0001712,95606.0,95605.0,0.3115308]
[1734932553854,0.0001712,95606.0,95605.0,0.32412846]
[1734932555343,0.0001712,95606.0,95605.0,0.41943686]
[1734932556134,0.0001712,95606.0,95605.0,0.41643686]
[1734932556377,0.0001712,95606.0,95605.0,0.41943686]
[1734932556572,0.0001712,95606.0,95605.0,0.46913686]
[1734932556871,0.0001712,95606.0,95605.0,0.47613686]
[1734932557341,0.0001712,95606.0,95605.0,0.47313686]
[1734932557578,0.0001712,95606.0,95605.0,0.47113686]
[1734932557791,0.0001712,95606.0,95605.0,0.48013686]
[1734932558404,0.0001712,95606.0,95605.0,0.66798683]
[1734932558983,0.0001712,95606.0,95605.0,0.47513686]
[1734932559982,0.0001712,95606.0,95605.0,0.47613686]
[1734932560418,0.0001712,95606.0,95605.0,0.46713686]
[1734932560654,0.0011712,95606.0,95605.0,0.46713686]
[1734932560858,0.0021712,95606.0,95605.0,0.46613686]
[1734932561051,0.0031712,95606.0,95605.0,0.46713686]
[1734932562209,0.0011712,95606.0,95605.0,0.46713686]
[1734932562605,0.0031712,95606.0,95605.0,0.46713686]
[1734932562806,0.0021712,95606.0,95605.0,0.46613686]
[1734932563012,0.0001712,95606.0,95605.0,0.46613686]
[1734932563351,0.0011712,95606.0,95605.0,0.46713686]
[1734932563506,0.0031712,95606.0,95605.0,0.46613686]
[1734932563710,0.0041712,95606.0,95605.0,0.46713686]
[1734932564278,0.0001712,95606.0,95605.0,0.46613686]
[1734932564529,0.0011712,95606.0,95605.0,0.46713686]
[1734932565071,0.0011712,95606.0,95605.0,0.99011686]
[1734932565477,0.0031712,95606.0,95605.0,0.99011686]
[1734932565683,0.0021712,95606.0,95605.0,0.98911686]
[1734932565886,0.0031712,95606.0,95605.0,0.99011686]
[1734932566544,0.0021712,95606.0,95605.0,0.99111686]
[1734932566751,0.0011712,95606.0,95605.0,0.98911686]
[1734932566960,0.0031712,95606.0,95605.0,0.98911686]
[1734932567168,0.0041712,95606.0,95605.0,0.99011686]
[1734932568262,0.0041712,95606.0,95605.0,1.08387767]
[1734932568614,0.0041712,95606.0,95605.0,1.08287767]
[1734932568615,0.0001712,95606.0,95605.0,1.08287767]
[1734932569084,0.0021712,95606.0,95605.0,1.08287767]
[1734932569284,0.0031712,95606.0,95605.0,1.08387767]
[1734932569596,0.0011712,95606.0,95605.0,1.08387767]
[1734932569738,0.0031712,95606.0,95605.0,1.08387767]
[1734932569949,0.0021712,95606.0,95605.0,1.08287767]
[1734932570158,0.0031712,95606.0,95605.0,0.98911686]
[1734932571197,0.0031712,95606.0,95605.0,1.08911686]
[1734932571959,0.0021712,95606.0,95605.0,1.08911686]
[1734932572137,0.0031712,95606.0,95605.0,1.08911686]
[1734932572313,0.0011712,95606.0,95605.0,1.08911686]
[1734932572667,0.0001712,95606.0,95605.0,1.08911686]
[1734932572896,0.0031712,95606.0,95605.0,1.08911686]
[1734932573100,0.0021712,95606.0,95605.0,1.08911686]
[1734932573276,0.0001712,95606.0,95605.0,1.08911686]
[1734932573449,0.0011712,95606.0,95605.0,1.08911686]
[1734932573656,0.0031712,95606.0,95605.0,1.08911686]
[1734932574636,0.0031712,95606.0,95605.0,1.32381093]
[1734932575063,0.0021712,95606.0,95605.0,1.32381093]
[1734932575464,0.0031712,95606.0,95605.0,1.32381093]
[1734932575836,0.0011712,95606.0,95605.0,1.32381093]
[1734932576259,0.0031712,95606.0,95605.0,1.32381093]
[1734932576647,0.0031712,95606.0,95605.0,1.08911686]
[1734932578355,0.0021712,95606.0,95605.0,1.08911686]
[1734932578535,0.0031712,95606.0,95605.0,1.08911686]
[1734932578964,0.0011712,95606.0,95605.0,1.08911686]
[1734932579267,0.0021712,95606.0,95605.0,1.08911686]
[1734932579861,0.0001712,95606.0,95605.0,1.08911686]
[1734932580068,0.0031712,95606.0,95605.0,1.08911686]
[1734932580678,0.0011712,95606.0,95605.0,1.13095586]
[1734932580878,0.0031712,95606.0,95605.0,1.13095586]
[1734932581602,0.0021712,95606.0,95605.0,1.13095586]
[1734932581739,0.0031712,95606.0,95605.0,1.13095586]
[1734932582186,0.0021712,95606.0,95605.0,1.13095586]
[1734932582395,0.0001712,95606.0,95605.0,0.96162506]
[1734932582592,0.0031712,95606.0,95605.0,1.03095586]
[1734932583066,0.0031712,95606.0,95605.0,1.21847199]
[1734932583490,0.0031712,95606.0,95605.0,1.31847199]
[1734932583917,0.0011712,95606.0,95605.0,1.31847199]
[1734932584322,0.0031712,95606.0,95605.0,1.13095586]
[1734932584722,0.1077712,95606.0,95605.0,1.13095586]
[1734932585205,0.1067712,95606.0,95605.0,1.17161385]
[1734932585626,0.1077712,95606.0,95605.0,1.01908305]
[1734932585835,0.1067712,95606.0,95605.0,1.01908305]
[1734932586034,0.1047712,95606.0,95605.0,1.01908305]
[1734932586233,0.1057712,95606.0,95605.0,1.01908305]
[1734932586459,0.1077712,95606.0,95605.0,1.01908305]
[1734932586807,0.1057712,95606.0,95605.0,1.01908305]
[1734932587233,0.1077712,95606.0,95605.0,1.08841385]
[1734932587471,0.1077712,95606.0,95605.0,1.01908305]
[1734932587790,0.1077712,95606.0,95605.0,1.08841385]
[1734932587993,0.1077712,95606.0,95605.0,1.01908305]
[1734932588196,0.1077712,95606.0,95605.0,0.94775586]
[1734932588758,0.1077712,95606.0,95605.0,0.9804251]
[1734932588953,0.1077712,95606.0,95605.0,1.0804251]
[1734932589160,0.1077712,95606.0,95605.0,1.26794123]
[1734932590164,0.1077712,95606.0,95605.0,1.0804251]
[1734932590803,0.1057712,95606.0,95605.0,1.0804251]
[1734932591211,0.1077712,95606.0,95605.0,1.0804251]
[1734932591547,0.1067712,95606.0,95605.0,1.0804251]
[1734932591994,0.1077712,95606.0,95605.0,1.0804251]
[1734932592205,0.1067712,95606.0,95605.0,1.0804251]
[1734932592607,0.1077712,95606.0,95605.0,1.0804251]
[1734932592910,0.1057712,95606.0,95605.0,1.0804251]
[1734932593317,0.1077712,95606.0,95605.0,1.0804251]
[1734932594174,0.1077712,95606.0,95605.0,1.36205798]
[1734932594353,0.1057712,95606.0,95605.0,1.36205798]
[1734932594581,0.1077712,95606.0,95605.0,1.36205798]
[1734932594952,0.1067712,95606.0,95605.0,1.0804251]
[1734932595374,0.1077712,95606.0,95605.0,1.0804251]
[1734932596829,0.1057712,95606.0,95605.0,1.0804251]
[1734932597184,0.1077712,95606.0,95605.0,1.0804251]
[1734932598109,0.1067712,95606.0,95605.0,1.0804251]
[1734932598514,0.1077712,95606.0,95605.0,1.0804251]
[1734932598951,0.00725818,95606.0,95605.0,1.0804251]
[1734932599131,0.0759,95631.0,95615.0,0.1]
[1734932599343,0.0759,95631.0,95630.0,0.4284698]
[1734932600246,0.07606031,95631.0,95630.0,0.4284698]
[1734932600526,0.07706031,95631.0,95630.0,0.4284698]
[1734932600855,0.07606031,95631.0,95630.0,0.4284698]
[1734932601052,0.07606031,95631.0,95630.0,0.9513198]
[1734932602044,0.07606031,95631.0,95630.0,0.9583198]
[1734932602394,0.07606031,95631.0,95630.0,0.9543198]
[1734932602796,0.00016031,95631.0,95630.0,0.9603198]
[1734932603324,0.00016031,95631.0,95630.0,0.9643198]
[1734932603529,0.00016031,95631.0,95630.0,0.97616193]
[1734932604177,0.00016031,95631.0,95630.0,0.97216193]
[1734932604877,0.00016031,95631.0,95630.0,0.96316193]
[1734932605360,0.00016031,95631.0,95630.0,1.07347033]
[1734932605502,0.00016031,95631.0,95630.0,1.06447033]
[1734932605711,0.00016031,95631.0,95630.0,1.06847033]
[1734932606114,0.00016031,95631.0,95630.0,1.06447033]
[1734932606361,0.00016031,95631.0,95630.0,1.07347033]
[1734932607014,0.00016031,95631.0,95630.0,1.07747033]
[1734932608394,0.00016031,95631.0,95630.0,1.17747033]
[1734932608950,0.00016031,95631.0,95630.0,1.17347033]
[1734932609171,0.00016031,95631.0,95630.0,1.38527532]
[1734932609383,0.00016031,95631.0,95630.0,1.35262133]
[1734932610153,0.00116031,95631.0,95630.0,1.16547033]
[1734932610493,0.00116031,95631.0,95630.0,1.16447033]
[1734932610731,0.00016031,95631.0,95630.0,1.16447033]
[1734932611081,0.00016031,95631.0,95630.0,1.44643096]
[1734932612112,0.00116031,95631.0,95630.0,1.16547033]
[1734932613247,0.00133151,95631.0,95630.0,1.16547033]
[1734932614193,0.00133151,95631.0,95630.0,1.44743096]
[1734932615290,0.00133151,95631.0,95630.0,1.16547033]
[1734932627243,0.00133151,95631.0,95630.0,1.06547033]
[1734932629115,0.078,95657.0,95633.0,0.1]
[1734932629325,0.078,95657.0,95639.0,0.4284498]
[1734932629539,0.0488,95668.0,95639.0,1.1826582]
[1734932629748,4e-07,95640.0,95639.0,1.2826582]
[1734932630183,0.078,95665.0,95664.0,0.4283958]
[1734932630392,0.00015699,95665.0,95664.0,0.5297042]
[1734932631335,0.00015699,95665.0,95664.0,1.0523642]
[1734932631787,0.00015699,95665.0,95664.0,1.1523642]
[1734932632005,0.00015699,95665.0,95664.0,1.39582927]
[1734932632361,0.0001714,95672.0,95671.0,0.5283798]
[1734932632587,0.0001714,95672.0,95671.0,1.1523082]
[1734932632798,0.0001714,95672.0,95671.0,1.2001082]
[1734932633467,0.0001714,95672.0,95671.0,1.2011082]
[1734932633889,0.0001714,95672.0,95671.0,1.2001082]
[1734932634356,0.0001714,95672.0,95671.0,1.43427609]
[1734932634759,0.0001714,95672.0,95671.0,1.38737239]
[1734932637473,0.0001714,95672.0,95671.0,1.2001082]
[1734932638502,0.0001712,95690.0,95676.0,0.3193308]
[1734932638685,0.0001712,95690.0,95676.0,0.9432392]
[1734932639153,0.0001712,95690.0,95689.0,0.0693308]
[1734932639363,0.0001712,95690.0,95689.0,0.69421399]
[1734932639571,0.0001712,95690.0,95689.0,0.8431692]
[1734932639811,0.0001712,95690.0,95689.0,1.0521792]
[1734932641629,0.0001712,95690.0,95689.0,0.9828484]
[1734932641630,0.0802712,95690.0,95689.0,0.9828484]
[1734932642236,0.0802712,95690.0,95689.0,0.9940747]
[1734932642667,0.0802712,95690.0,95689.0,1.0634055]
[1734932643111,0.0001712,95690.0,95689.0,1.0634055]
[1734932644326,0.0001712,95690.0,95689.0,1.2119055]
[1734932644733,0.0001716,95705.0,95696.0,0.5283258]
[1734932645107,0.00070733,95697.0,95696.0,1.3344242]
[1734932645380,0.00070733,95697.0,95696.0,1.36335697]
[1734932645584,0.0001716,95705.0,95701.0,0.6283148]
[1734932645785,0.00032807,95702.0,95701.0,1.2467232]
[1734932647931,0.00032807,95702.0,95701.0,1.1467232]
[1734932648480,0.00032807,95702.0,95701.0,0.9827524]
[1734932648876,0.00032807,95702.0,95701.0,1.0467232]
[1734932649954,0.00032807,95702.0,95701.0,0.9827524]
[1734932650131,0.00032807,95702.0,95701.0,1.0467232]
[1734932650545,0.00032807,95702.0,95701.0,1.05821416]
[1734932656087,0.00032807,95702.0,95701.0,0.99424336]
[1734932656431,0.00032807,95702.0,95701.0,1.05821416]
[1734932659517,0.00132807,95702.0,95701.0,1.05821416]
[1734932660498,0.00032807,95702.0,95701.0,1.05821416]
[1734932660701,0.00132807,95702.0,95701.0,1.05821416]
[1734932662214,0.00032807,95702.0,95701.0,1.05821416]
[1734932662338,0.00132807,95702.0,95701.0,1.05829966]
[1734932664025,0.00132807,95702.0,95701.0,0.99432886]
[1734932664460,0.00132807,95702.0,95701.0,0.90829966]
[1734932665227,0.00032807,95702.0,95701.0,0.90829966]
[1734932665428,0.00032807,95702.0,95701.0,1.05829966]
[1734932665429,0.00132807,95702.0,95701.0,1.05829966]
[1734932665879,0.00632807,95702.0,95701.0,0.95699126]
[1734932666106,0.00632807,95702.0,95701.0,0.68403646]
[1734932667209,0.00132807,95702.0,95701.0,0.68403646]
[1734932667417,0.00032807,95702.0,95701.0,0.68403646]
[1734932667825,0.00032807,95702.0,95701.0,0.69303646]
[1734932668783,0.00032807,95702.0,95701.0,0.69603646]
[1734932669311,0.00032807,95702.0,95701.0,0.69303646]
[1734932669636,0.00032807,95702.0,95701.0,0.90802046]
[1734932670288,0.00032807,95702.0,95701.0,0.69903646]
[1734932675413,0.00032807,95702.0,95701.0,0.6875455]
[1734932675642,0.07912807,95702.0,95701.0,0.6875455]
[1734932675943,0.07912807,95702.0,95701.0,0.5375455]
[1734932676551,0.07912807,95702.0,95701.0,0.5315455]
[1734932676959,0.07912807,95702.0,95701.0,0.5255455]
[1734932677517,0.08012807,95702.0,95701.0,0.5315455]
[1734932677768,0.07912807,95702.0,95701.0,0.5255455]
[1734932678343,0.07912807,95702.0,95701.0,0.5225455]
[1734932678743,0.07912807,95702.0,95701.0,0.5255455]
[1734932679198,0.07912807,95702.0,95701.0,0.5225455]
[1734932679359,0.08012807,95702.0,95701.0,0.5295455]
[1734932679561,0.08012807,95702.0,95701.0,0.5325455]
[1734932680891,0.12682807,95702.0,95701.0,0.5325455]
[1734932681091,0.22813647,95702.0,95701.0,0.5325455]
[1734932686863,0.12682807,95702.0,95701.0,0.5325455]
[1734932687299,0.08012807,95702.0,95701.0,0.5325455]
[1734932690993,0.00132807,95702.0,95701.0,0.5325455]
[1734932691403,0.00132807,95702.0,95701.0,0.7283455]
[1734932691609,0.00132807,95702.0,95701.0,0.8722163]
[1734932692242,0.00132807,95702.0,95701.0,0.98164793]
[1734932692692,0.00032807,95702.0,95701.0,0.97764793]
[1734932693390,0.00132807,95702.0,95701.0,0.98464793]
[1734932693593,0.00132807,95702.0,95701.0,0.98164793]
[1734932693799,0.00032807,95702.0,95701.0,1.20881582]
[1734932694001,0.00432807,95702.0,95701.0,1.21381582]
[1734932694763,0.00432807,95702.0,95701.0,0.97964793]
[1734932695345,0.00032807,95702.0,95701.0,0.97464793]
[1734932696640,0.00032807,95702.0,95701.0,0.91067713]
[1734932696847,0.00032807,95702.0,95701.0,0.97464793]
[1734932697454,0.00032807,95702.0,95701.0,0.91067713]
[1734932697659,0.00032807,95702.0,95701.0,0.72946873]
[1734932698874,0.00132807,95702.0,95701.0,0.72946873]
[1734932699236,0.00032807,95702.0,95701.0,0.91691989]
[1734932699476,0.00332807,95702.0,95701.0,0.91691989]
[1734932699781,0.00132807,95702.0,95701.0,0.91691989]
[1734932699986,0.00132807,95702.0,95701.0,0.98089069]
[1734932700189,0.00532807,95702.0,95701.0,0.79443953]
[1734932700391,0.00432807,95702.0,95701.0,0.79443953]
[1734932701802,0.00532807,95702.0,95701.0,0.79443953]
[1734932702315,0.00432807,95702.0,95701.0,0.79443953]
[1734932702519,0.00432807,95702.0,95701.0,1.02875348]
[1734932702723,0.00132807,95702.0,95701.0,1.02775348]
[1734932703066,0.00432807,95702.0,95701.0,0.79343953]
[1734932703268,0.00032807,95702.0,95701.0,0.79343953]
[1734932703670,0.00132807,95702.0,95701.0,0.79343953]
[1734932704112,0.00532807,95702.0,95701.0,0.79343953]
[1734932704522,0.00132807,95702.0,95701.0,0.98095574]
[1734932704726,0.00132807,95702.0,95701.0,0.91698494]
[1734932704930,0.00032807,95702.0,95701.0,0.98095574]
[1734932705267,0.00132807,95702.0,95701.0,0.98095574]
[1734932705538,0.00132807,95702.0,95701.0,0.79343953]
[1734932705742,0.00032807,95702.0,95701.0,0.79343953]
[1734932706151,0.00532807,95702.0,95701.0,0.79343953]
[1734932706537,0.00432807,95702.0,95701.0,1.02775348]
[1734932706948,0.00532807,95702.0,95701.0,0.98195348]
[1734932707528,0.00532807,95702.0,95701.0,0.74763953]
[1734932707743,0.00532807,95702.0,95701.0,0.93516851]
[1734932708545,0.00432807,95702.0,95701.0,0.93516851]
[1734932708951,0.00532807,95702.0,95701.0,0.93516851]
[1734932709636,0.00132807,95702.0,95701.0,0.74763953]
[1734932709835,0.00532807,95702.0,95701.0,0.74763953]
[1734932710267,0.00532807,95702.0,95701.0,0.98195348]
[1734932710512,0.00532807,95702.0,95701.0,0.91798268]
[1734932710789,0.00532807,95702.0,95701.0,0.98195348]
[1734932711375,0.00532807,95702.0,95701.0,0.74763953]
[1734932711692,0.00432807,95702.0,95701.0,0.74763953]
[1734932711814,0.00432807,95702.0,95701.0,0.68466873]
[1734932712383,0.00432807,95702.0,95701.0,0.68366873]
[1734932712806,0.00032807,95702.0,95701.0,0.68466873]
[1734932712948,0.00032807,95702.0,95701.0,0.74863953]
[1734932713321,0.00032807,95702.0,95701.0,0.74763953]
[1734932713768,0.00032807,95702.0,95701.0,0.74863953]
[1734932713970,0.00032807,95702.0,95701.0,0.74763953]
[1734932714372,0.00132807,95702.0,95701.0,0.75663953]
[1734932714776,0.00032807,95702.0,95701.0,0.74763953]
[1734932715522,0.00032807,95702.0,95701.0,0.75363953]
[1734932715908,0.00032807,95702.0,95701.0,0.74763953]
[1734932716407,0.00132807,95702.0,95701.0,0.76263953]
[1734932716818,0.00032807,95702.0,95701.0,0.84741543]
[1734932716961,0.00132807,95702.0,95701.0,0.85641543]
[1734932717405,0.00032807,95702.0,95701.0,0.78344463]
[1734932717609,0.00032807,95702.0,95701.0,0.68966873]
[1734932717784,0.00132807,95702.0,95701.0,0.69866873]
[1734932717998,0.00132807,95702.0,95701.0,0.69266873]
[1734932718186,0.00132807,95702.0,95701.0,0.69866873]
[1734932718703,0.00132807,95702.0,95701.0,0.69266873]
[1734932719101,0.00132807,95702.0,95701.0,0.69866873]
[1734932719743,0.00132807,95702.0,95701.0,0.6875455]
[1734932721475,0.00132807,95702.0,95701.0,0.6815455]
[1734932721744,0.00132807,95702.0,95701.0,0.7455163]
[1734932721906,0.00132807,95702.0,95701.0,0.7505163]
[1734932722461,0.00132807,95702.0,95701.0,0.7455163]
[1734932722661,0.00132807,95702.0,95701.0,0.7505163]
[1734932723881,0.00032807,95702.0,95701.0,0.7415163]
[1734932724317,0.00132807,95702.0,95701.0,0.7505163]
[1734932724484,0.00132807,95702.0,95701.0,0.7415163]
[1734932724704,0.00132807,95702.0,95701.0,0.6775455]
[1734932724915,0.08522807,95702.0,95701.0,0.6865455]
[1734932725648,0.08522807,95702.0,95701.0,0.6815455]
[1734932726112,0.08522807,95702.0,95701.0,0.6855455]
[1734932727115,0.08522807,95702.0,95701.0,0.5355455]
[1734932727496,0.08522807,95702.0,95701.0,0.5315455]
[1734932727692,0.18653647,95702.0,95701.0,0.5315455]
[1734932727901,0.18653647,95702.0,95701.0,0.5365455]
[1734932728187,0.18453647,95702.0,95701.0,0.5275455]
[1734932728394,0.18453647,95702.0,95701.0,0.5225455]
[1734932728597,0.18553647,95702.0,95701.0,0.5315455]
[1734932728811,0.08422807,95702.0,95701.0,0.5355455]
[1734932729218,0.00132807,95702.0,95701.0,0.5315455]
[1734932729568,0.00132807,95702.0,95701.0,0.5355455]
[1734932730380,0.00032807,95702.0,95701.0,0.5265455]
[1734932730827,0.00132807,95702.0,95701.0,0.5355455]
[1734932740224,0.18453647,95702.0,95701.0,0.5355455]
[1734932741139,0.20753647,95702.0,95701.0,0.5355455]
[1734932741344,0.25463647,95702.0,95701.0,0.5315455]
[1734932741539,0.25363647,95702.0,95701.0,0.5245455]
[1734932742060,0.25363647,95702.0,95701.0,0.5285455]
[1734932742657,0.25363647,95702.0,95701.0,0.5265455]
[1734932742975,0.25363647,95702.0,95701.0,0.5275455]
[1734932743604,0.25363647,95702.0,95701.0,0.5235455]
[1734932743805,0.25363647,95702.0,95701.0,0.5255455]
[1734932744250,0.25363647,95702.0,95701.0,0.5235455]
[1734932744456,0.25863647,95702.0,95701.0,0.5225455]
[1734932744651,0.26063647,95702.0,95701.0,0.5225455]
[1734932744859,0.25563647,95702.0,95701.0,0.5225455]
[1734932745258,0.25763647,95702.0,95701.0,0.5225455]
[1734932745456,0.25563647,95702.0,95701.0,0.5225455]
[1734932746090,0.35363647,95702.0,95701.0,0.5225455]
[1734932746294,0.39066567,95702.0,95701.0,0.5225455]
[1734932746838,0.39566567,95702.0,95701.0,0.5225455]
[1734932747064,0.39566567,95702.0,95701.0,0.4495455]
[1734932747255,0.29066567,95702.0,95701.0,0.4495455]
[1734932747460,0.35963647,95702.0,95701.0,0.4495455]
[1734932747655,0.18953647,95702.0,95701.0,0.4495455]
[1734932747856,0.18453647,95702.0,95701.0,0.4495455]
[1734932748060,0.18953647,95702.0,95701.0,0.4495455]
[1734932748261,0.18853647,95702.0,95701.0,0.4495455]
[1734932748464,0.18353647,95702.0,95701.0,0.4495455]
[1734932748728,0.18453647,95702.0,95701.0,0.4495455]
[1734932748923,0.21253647,95702.0,95701.0,0.4495455]
[1734932749101,0.21153647,95702.0,95701.0,0.4495455]
[1734932749477,0.21253647,95702.0,95701.0,0.4495455]
[1734932750033,0.00032807,95702.0,95701.0,0.4495455]
[1734932750403,0.00232807,95702.0,95701.0,0.4495455]
[1734932750801,0.00032807,95702.0,95701.0,0.4495455]
[1734932751068,0.00232807,95702.0,95701.0,0.4495455]
[1734932751476,0.00032807,95702.0,95701.0,0.4495455]
[1734932751705,0.00032807,95702.0,95701.0,0.4505455]
[1734932752122,0.00032807,95702.0,95701.0,0.4495455]
[1734932752916,0.00032807,95702.0,95701.0,0.4515455]
[1734932753689,0.00032807,95702.0,95701.0,0.4535455]
[1734932754096,0.00032807,95702.0,95701.0,0.4515455]
[1734932755185,0.00032807,95702.0,95701.0,0.4505455]
[1734932755383,0.00032807,95702.0,95701.0,0.4555455]
[1734932755636,0.00032807,95702.0,95701.0,0.4545455]
[1734932755998,0.00032807,95702.0,95701.0,0.4575455]
[1734932756469,0.00032807,95702.0,95701.0,0.4545455]
[1734932756812,0.00032807,95702.0,95701.0,0.4565455]
[1734932757250,0.00032807,95702.0,95701.0,0.4515455]
[1734932757597,0.00032807,95702.0,95701.0,0.4535455]
[1734932757978,0.00032807,95702.0,95701.0,0.4515455]
[1734932758186,0.00032807,95702.0,95701.0,0.4535455]
[1734932758509,0.00032807,95702.0,95701.0,0.4515455]
[1734932758713,0.00032807,95702.0,95701.0,0.4535455]
[1734932759099,0.00032807,95702.0,95701.0,0.4515455]
[1734932759519,0.00032807,95702.0,95701.0,0.4535455]
[1734932760481,0.00032807,95702.0,95701.0,0.4515455]
[1734932760680,0.00032807,95702.0,95701.0,0.4535455]
[1734932761094,0.00032807,95702.0,95701.0,0.4515455]
[1734932761501,0.00032807,95702.0,95701.0,0.4545455]
[1734932762263,0.00032807,95702.0,95701.0,0.4525455]
[1734932762384,0.00032807,95702.0,95701.0,0.4545455]
[1734932771302,0.00032807,95702.0,95701.0,0.4515455]
[1734932771604,0.00032807,95702.0,95701.0,0.4525455]
[1734932771784,0.00032807,95702.0,95701.0,0.4545455]
[1734932774113,0.00015745,95702.0,95701.0,0.4545455]
[1734932775012,0.00015745,95702.0,95701.0,0.5758455]
[1734932775236,0.00015745,95702.0,95701.0,0.7898163]
[1734932776522,0.00015745,95702.0,95701.0,0.7878163]
[1734932776903,0.00015745,95702.0,95701.0,0.8017716]
[1734932777113,0.00015745,95702.0,95701.0,1.03608555]
[1734932777308,0.00015745,95702.0,95701.0,1.03308555]
[1734932777508,0.00015745,95702.0,95701.0,0.95738555]
[1734932777710,0.00015745,95702.0,95701.0,0.96238555]
[1734932777912,0.00015745,95702.0,95701.0,0.7230716]
[1734932778315,0.00015745,95702.0,95701.0,0.7220716]
[1734932778645,0.00015745,95702.0,95701.0,0.7210716]
[1734932779073,0.00115745,95702.0,95701.0,0.7200716]
[1734932780085,0.00115745,95702.0,95701.0,0.6561008]
[1734932781236,0.00015745,95702.0,95701.0,0.6561008]
[1734932781440,0.00115745,95702.0,95701.0,0.6561008]
[1734932782034,0.00215745,95702.0,95701.0,0.6651008]
[1734932782241,0.00115745,95702.0,95701.0,0.6651008]
[1734932782440,0.00015745,95702.0,95701.0,0.6105008]